bitfinex-derivatives/quotes_ETHF0:USTF0_20250411
["timestamp","ask_amount","ask_price","bid_price","bid_amount"]
[1744329601570,1.4098,1522.2,1522.1,0.00984252]
[1744329601773,7.9915,1522.2,1522.1,0.00984252]
[1744329603467,9.30628,1522.2,1522.1,0.00984252]
[1744329604375,2.9915,1522.2,1522.1,0.00984252]
[1744329604577,7.72458,1522.2,1522.1,2.52e-06]
[1744329604873,9.42258,1522.2,1522.1,2.52e-06]
[1744329605076,4.42258,1522.2,1522.1,2.52e-06]
[1744329605873,4.42258,1522.2,1522.1,4.74900252]
[1744329606581,4.42258,1522.2,1522.1,2.52e-06]
[1744329607189,9.42258,1522.2,1522.1,2.52e-06]
[1744329608284,15.27458,1522.2,1522.1,2.52e-06]
[1744329609879,10.27458,1522.2,1522.1,2.52e-06]
[1744329612185,8.9598,1522.2,1522.1,2.52e-06]
[1744329612378,8.9598,1522.2,1522.1,1.31486252]
[1744329612584,3.2078,1522.3,1522.2,1.31478]
[1744329612785,0.00984252,1522.4,1522.3,1.31469]
[1744329613089,0.00984252,1522.4,1522.3,6.06369]
[1744329613285,0.00984252,1522.4,1522.3,9.749]
[1744329613583,1.32444252,1522.4,1522.3,9.749]
[1744329613793,0.00984252,1522.4,1522.3,11.06369]
[1744329614088,0.00984252,1522.4,1522.3,14.27149]
[1744329614288,0.00984252,1522.4,1522.3,11.06369]
[1744329614490,0.00984252,1522.4,1522.3,14.27149]
[1744329614892,0.00984252,1522.4,1522.3,4.749]
[1744329615286,1.31478,1522.2,1522.1,2.52e-06]
[1744329615487,3.11164252,1522.4,1522.1,3.20780252]
[1744329615786,1.32444252,1522.4,1522.2,6.06373]
[1744329615992,0.00984252,1522.4,1522.2,7.48283]
[1744329616188,0.00984252,1522.4,1522.2,6.1681]
[1744329616385,0.00984252,1522.4,1522.2,7.48284]
[1744329616691,1.32445252,1522.4,1522.2,7.48284]
[1744329617092,1.32445252,1522.4,1522.2,7.44084]
[1744329617890,0.00984252,1522.4,1522.2,7.44084]
[1744329618089,0.00984252,1522.4,1522.3,4.52249]
[1744329618598,0.00984252,1522.4,1522.3,9.52249]
[1744329618994,2.52e-06,1522.4,1522.3,9.52249]
[1744329619196,2.52e-06,1522.4,1522.3,11.49989]
[1744329620802,2.52e-06,1522.4,1522.3,6.49989]
[1744329620996,2.52e-06,1522.4,1522.3,2.90809]
[1744329621194,2.52e-06,1522.4,1522.3,6.11589]
[1744329622299,2.52e-06,1522.4,1522.3,11.11589]
[1744329622802,2.52e-06,1522.4,1522.3,19.82439966]
[1744329625500,2.52e-06,1522.4,1522.3,11.11589]
[1744329625900,2.52e-06,1522.4,1522.3,6.11589]
[1744329626500,2.52e-06,1522.4,1522.3,19.48955737]
[1744329627400,2.52e-06,1522.4,1522.3,11.11589]
[1744329627800,2.52e-06,1522.4,1522.3,6.11589]
[1744329628006,2.52e-06,1522.4,1522.3,16.4290196]
[1744329628409,2.52e-06,1522.4,1522.3,21.4290196]
[1744329630909,2.52e-06,1522.4,1522.3,25.16235323]
[1744329632408,2.52e-06,1522.4,1522.3,14.84922363]
[1744329633108,2.52e-06,1522.4,1522.3,15.50682363]
[1744329637406,2.52e-06,1522.4,1522.3,6.77349]
[1744329638999,1.348,1522.7,1522.4,1.3146]
[1744329639204,1.683,1522.9,1522.6,4.52223]
[1744329639405,3.1523,1522.9,1522.8,1.31426]
[1744329639609,8.1523,1522.9,1522.8,6.03826]
[1744329643313,9.4947,1522.9,1522.8,6.03826]
[1744329643713,10.80887,1522.9,1522.8,4.724]
[1744329645210,12.78017,1522.9,1522.4,1.31456]
[1744329645510,1.31456,1522.5,1522.4,4.724]
[1744329645914,9.2749,1522.5,1522.2,10.3131296]
[1744329646207,4.52249,1522.3,1522.2,15.0371296]
[1744329646415,4.52249,1522.3,1522.2,12.8179296]
[1744329646615,9.52249,1522.3,1522.2,5.8747296]
[1744329646815,1.31478,1522.2,1522.1,15.46969692]
[1744329647018,6.31478,1522.2,1522.1,11.03129692]
[1744329647220,6.31478,1522.2,1522.1,9.37949692]
[1744329647519,6.31478,1522.2,1522.1,6.37459692]
[1744329647520,12.16678,1522.2,1522.1,6.37459692]
[1744329647819,12.16678,1522.2,1522.1,5.50079692]
[1744329648920,1.31486,1522.1,1522.0,0.00984252]
[1744329649118,4.52266,1522.1,1522.0,0.00984252]
[1744329649320,9.52266,1522.1,1522.0,0.00984252]
[1744329650327,4.52266,1522.1,1522.0,0.00984252]
[1744329650618,3.2078,1522.1,1522.0,0.00984252]
[1744329650820,3.2078,1522.1,1522.0,1.63904252]
[1744329651017,4.52266,1522.1,1522.0,1.63904252]
[1744329651321,9.52266,1522.1,1522.0,0.00984252]
[1744329652213,3.28738,1522.0,1521.2,1.4584]
[1744329652414,3.2078,1521.4,1521.1,3.2078]
[1744329652613,1.31573,1521.1,1520.9,20.6262592]
[1744329652821,3.2078,1521.2,1520.9,20.6262592]
[1744329653022,3.28874,1521.4,1520.9,20.6262592]
[1744329653023,4.52361,1521.0,1520.9,20.6262592]
[1744329653419,3.2078,1521.0,1520.9,20.6262592]
[1744329653722,3.2078,1521.0,1520.9,21.9421592]
[1744329653919,3.2078,1521.0,1520.9,22.2378592]
[1744329654222,3.2078,1521.0,1520.9,23.5537592]
[1744329654823,3.2078,1521.0,1520.9,28.2797592]
[1744329656519,0.00984252,1521.1,1521.0,1.31581]
[1744329656717,0.00984252,1521.1,1521.0,3.01271]
[1744329657118,0.00984252,1521.1,1521.0,4.48061]
[1744329657622,4.53337252,1521.1,1521.0,1.6969]
[1744329657923,3.21764252,1521.1,1521.0,3.01271]
[1744329658526,0.00984252,1521.1,1521.0,3.01271]
[1744329658721,0.00984252,1521.1,1521.0,7.73971]
[1744329658918,0.00984252,1521.1,1521.0,9.09521]
[1744329659118,0.00984252,1521.1,1521.0,14.09521]
[1744329659526,0.00984252,1521.1,1521.0,9.09521]
[1744329660923,3.2078,1521.5,1521.4,1.31547]
[1744329661220,3.2078,1521.5,1521.3,6.0425]
[1744329661425,3.2078,1521.5,1521.4,1.7351]
[1744329661625,1.3156,1521.3,1520.9,7.9348]
[1744329661927,1.3156,1521.3,1521.1,1.7351]
[1744329662131,1.32544252,1521.3,1521.1,3.0508]
[1744329662425,0.00984252,1521.3,1521.2,6.04264]
[1744329662621,0.00984252,1521.3,1521.2,6.4621]
[1744329662927,1.32539252,1521.3,1521.2,6.4621]
[1744329663323,1.31567,1521.2,1521.0,1.31575]
[1744329663526,1.3159,1520.9,1520.8,0.00984252]
[1744329663830,17.07772,1520.9,1520.2,1.4353]
[1744329664122,4.52407,1520.5,1520.3,1.6611]
[1744329664428,1.31633,1520.4,1520.3,1.6611]
[1744329664624,3.2078,1520.5,1520.2,1.31646]
[1744329664925,1.31633,1520.4,1520.3,1.6611]
[1744329665125,1.31642,1520.3,1520.2,0.00984252]
[1744329665331,9.0598,1520.4,1520.2,0.00984252]
[1744329665531,1.31642,1520.3,1520.2,0.00984252]
[1744329666031,6.31642,1520.3,1520.2,0.00984252]
[1744329667133,9.52422,1520.3,1520.2,0.00984252]
[1744329668335,4.52422,1520.3,1520.2,0.00984252]
[1744329670334,3.2078,1520.3,1520.2,1.32635252]
[1744329670537,0.00984252,1520.5,1520.4,1.31633]
[1744329670538,3.21764252,1520.5,1520.4,1.31633]
[1744329670826,3.21764252,1520.5,1520.3,3.05746]
[1744329671025,0.00984252,1520.5,1520.4,7.90743]
[1744329671220,0.00984252,1520.5,1520.4,12.90743]
[1744329671421,0.00984252,1520.5,1520.4,7.90743]
[1744329671730,3.2078,1520.9,1520.8,1.31596]
[1744329671932,4.52357,1521.1,1520.8,1.31596]
[1744329672125,3.2078,1521.1,1521.0,1.31581]
[1744329672325,6.46753704,1521.2,1520.9,1.7411]
[1744329672529,1.31581,1521.0,1520.9,1.7411]
[1744329672725,1.31616,1520.6,1520.5,1.3869]
[1744329672933,3.2078,1520.6,1520.5,2.70315]
[1744329673129,3.2078,1520.8,1520.5,1.3869]
[1744329673334,3.2078,1520.8,1520.6,1.7019]
[1744329673535,3.2078,1520.8,1520.6,3.01806]
[1744329673931,3.2078,1520.8,1520.7,1.7019]
[1744329674230,0.00984252,1521.1,1520.7,1.7019]
[1744329674231,4.52367,1521.0,1520.7,3.01797]
[1744329674431,4.52367,1521.0,1520.8,1.31598]
[1744329674631,4.52367,1521.0,1520.9,1.7019]
[1744329676730,9.52367,1521.0,1520.9,1.7019]
[1744329677328,1.31607,1520.7,1520.6,1.3321]
[1744329677534,4.52387,1520.7,1520.6,1.3321]
[1744329677737,4.52387,1520.7,1520.3,6.16637]
[1744329677738,3.2078,1520.7,1520.3,6.16637]
[1744329678034,4.52405,1520.5,1520.3,6.16637]
[1744329678230,3.2078,1520.5,1520.3,4.85]
[1744329678435,3.2078,1520.5,1520.2,0.00984252]
[1744329678631,1.3164,1520.4,1520.3,1.7326]
[1744329678833,4.5242,1520.4,1520.3,1.7326]
[1744329680439,1.31642,1520.3,1520.2,0.00984252]
[1744329680634,7.16842,1520.3,1520.2,0.00984252]
[1744329680845,12.16842,1520.3,1520.2,0.00984252]
[1744329682237,7.16842,1520.3,1520.2,0.00984252]
[1744329682632,12.16842,1520.3,1520.2,0.00984252]
[1744329684146,7.16842,1520.3,1520.2,0.00984252]
[1744329685347,12.16842,1520.3,1520.2,0.00984252]
[1744329685545,12.16842,1520.3,1520.2,2.52e-06]
[1744329687848,1.31685,1519.8,1519.7,1.675]
[1744329688039,4.52465,1519.8,1519.7,1.675]
[1744329690442,7.17867252,1519.9,1519.7,7.9919]
[1744329690639,4.52429,1520.3,1520.0,1.31661]
[1744329690841,1.31651,1520.2,1519.8,4.853]
[1744329691146,1.31651,1520.2,1520.0,1.31666]
[1744329691339,4.52428,1520.3,1520.1,1.416]
[1744329691534,3.2078,1520.5,1520.1,4.6238]
[1744329691740,4.52393,1520.7,1520.4,1.31633]
[1744329691942,0.00984252,1520.5,1520.4,1.31633]
[1744329692152,3.2078,1520.7,1520.5,1.31623]
[1744329692449,3.2078,1520.7,1520.6,2.73216]
[1744329692748,4.52374,1520.9,1520.6,2.73216]
[1744329692946,3.2078,1520.9,1520.6,1.416]
[1744329693147,1.31607,1520.7,1520.6,1.416]
[1744329693344,1.31604,1520.8,1520.6,1.416]
[1744329693545,1.31607,1520.7,1520.6,1.416]
[1744329694049,1.31605,1520.8,1520.6,1.416]
[1744329694249,3.21764252,1520.9,1520.6,1.416]
[1744329694547,4.53360252,1520.9,1520.6,2.73214]
[1744329694846,1.31607,1520.7,1520.6,1.416]
[1744329695047,3.21764252,1520.9,1520.6,1.416]
[1744329695249,4.52387,1520.7,1520.6,1.416]
[1744329695447,1.31607,1520.7,1520.6,1.416]
[1744329697047,1.31605,1520.8,1520.6,1.416]
[1744329697347,1.31605,1520.8,1520.7,1.5752]
[1744329699941,1.33495,1520.8,1520.7,1.5752]
[1744329700345,3.29026,1520.7,1520.3,0.00984252]
[1744329700544,1.31633,1520.4,1520.3,1.66564252]
[1744329701350,4.52411,1520.5,1520.3,2.98204252]
[1744329701542,1.31633,1520.4,1520.3,1.66564252]
[1744329707358,1.33563,1520.4,1520.3,1.66564252]
[1744329707656,1.31633,1520.4,1520.3,1.66564252]
[1744329708755,1.33563,1520.4,1520.3,1.66564252]
[1744329710256,1.31633,1520.4,1520.3,1.66564252]
[1744329711859,4.52411,1520.5,1520.3,9.31025252]
[1744329712157,6.13931621,1520.4,1520.3,2.99384252]
[1744329712356,6.13931621,1520.4,1520.3,2.65446252]
[1744329712556,6.13931621,1520.4,1520.3,7.65446252]
[1744329713256,3.93221621,1520.4,1520.3,7.65446252]
[1744329713656,5.24854621,1520.4,1520.3,6.33804252]
[1744329714357,3.93221621,1520.4,1520.3,7.65446252]
[1744329715358,1.72511621,1520.4,1520.3,10.86226252]
[1744329715550,3.2078,1520.8,1520.5,1.31622]
[1744329715752,1.31616,1520.6,1520.5,4.992]
[1744329716953,1.31633,1520.4,1520.3,9.53784252]
[1744329717351,1.31633,1520.4,1520.3,6.33004252]
[1744329717661,1.31631,1520.5,1520.3,7.64639252]
[1744329717863,1.31631,1520.5,1520.3,6.33004252]
[1744329718063,1.31633,1520.4,1520.3,6.33004252]
[1744329719458,15.37613,1520.4,1520.3,2.52e-06]
[1744329719663,15.37613,1520.4,1519.5,18.62026142]
[1744329719664,1.31694,1519.7,1519.6,1.4068]
[1744329720362,1.31694,1519.7,1519.6,6.4068]
[1744329721057,1.31694,1519.7,1519.6,1.4068]
[1744329722163,4.52474,1519.7,1519.6,1.4068]
[1744329724968,4.52474,1519.7,1519.5,0.00984252]
[1744329724969,1.31703,1519.6,1519.5,0.00984252]
[1744329728966,11.28903,1519.6,1519.5,2.52e-06]
[1744329729162,18.62523,1519.6,1519.5,2.52e-06]
[1744329729369,8.63263,1519.6,1519.5,2.52e-06]
[1744329729571,7.16903,1519.6,1519.5,2.52e-06]
[1744329729969,7.16903,1519.6,1519.5,1.61070252]
[1744329730362,12.16903,1519.6,1519.5,2.52e-06]
[1744329730568,12.18933,1519.6,1519.5,2.52e-06]
[1744329731271,13.61353,1519.6,1519.5,2.52e-06]
[1744329731472,8.59323,1519.6,1519.5,2.52e-06]
[1744329732673,1.31703,1519.6,1519.5,2.52e-06]
[1744329732874,1.31698,1519.7,1519.5,9.52487252]
[1744329733072,1.31698,1519.7,1519.6,3.0149]
[1744329733370,0.00984252,1519.8,1519.7,1.31694]
[1744329733671,1.32669252,1519.8,1519.7,1.6423]
[1744329736176,1.32669252,1519.8,1519.7,3.0451]
[1744329737682,1.32669252,1519.8,1519.7,1.6423]
[1744329739277,0.00984252,1519.8,1519.7,3.0295]
[1744329739574,1.32669252,1519.8,1519.7,3.0295]
[1744329739874,14.22688556,1520.3,1519.7,16.2103]
[1744329740174,1.31654,1520.2,1520.0,1.31663]
[1744329740370,1.31654,1520.2,1520.1,2.88679]
[1744329740566,1.31654,1520.2,1520.1,1.5702]
[1744329741077,1.31685,1519.8,1519.7,1.3872]
[1744329741268,1.31683,1519.9,1519.7,1.3872]
[1744329741773,1.31683,1519.9,1519.7,5.91191]
[1744329742275,1.31685,1519.8,1519.7,1.3872]
[1744329743678,1.31685,1519.8,1519.7,3.0275]
[1744329745082,4.52465,1519.8,1519.7,1.6403]
[1744329745773,1.31703,1519.6,1519.5,2.52e-06]
[1744329746074,4.52483,1519.6,1519.5,1.61170252]
[1744329746784,5.85973,1519.6,1519.5,1.61170252]
[1744329747470,2.65193,1519.6,1519.5,1.61170252]
[1744329748376,1.31703,1519.6,1519.5,1.61170252]
[1744329748684,1.4095,1519.9,1519.5,1.61170252]
[1744329748884,1.31693,1519.8,1519.5,1.61170252]
[1744329749183,1.31703,1519.6,1519.5,1.61170252]
[1744329749685,1.4095,1519.9,1519.6,1.31698]
[1744329749884,1.31685,1519.8,1519.7,1.6117]
[1744329750981,1.31682,1519.9,1519.7,6.6117]
[1744329751177,7.72781556,1520.0,1519.8,3.0542]
[1744329751383,7.72781556,1520.0,1519.9,3.00497]
[1744329751583,9.04449556,1520.0,1519.9,6.6612]
[1744329752077,9.04449556,1520.0,1519.9,1.6882]
[1744329752583,12.25229556,1520.0,1519.9,1.6882]
[1744329753486,7.72781556,1520.0,1519.9,3.00497]
[1744329754183,1.31653,1520.2,1520.0,1.31668]
[1744329754387,9.05414808,1520.3,1520.1,1.31656]
[1744329754587,1.31665,1520.1,1519.9,1.31675]
[1744329754978,7.73765808,1520.3,1519.8,10.86265]
[1744329755183,1.3167,1520.0,1519.8,9.5458]
[1744329755378,1.3167,1520.0,1519.8,10.86265]
[1744329755991,7.73765808,1520.3,1519.8,10.86265]
[1744329756190,1.31671,1520.0,1519.8,9.5458]
[1744329757080,1.31677,1519.9,1519.8,6.338]
[1744329761296,1.31703,1519.6,1519.5,5.03100252]
[1744329761995,1.31701,1519.7,1519.5,6.34811252]
[1744329763097,1.31703,1519.6,1519.5,5.03100252]
[1744329763688,3.29194,1519.9,1519.5,6.34811252]
[1744329763989,1.31703,1519.6,1519.5,5.03100252]
[1744329764489,1.31703,1519.6,1519.5,2.52e-06]
[1744329764897,4.52483,1519.6,1519.5,2.52e-06]
[1744329765395,10.92593,1519.6,1519.5,2.52e-06]
[1744329765588,17.37673,1519.6,1519.5,2.52e-06]
[1744329765788,12.34573,1519.6,1519.5,2.52e-06]
[1744329766681,17.37673,1519.6,1519.5,2.52e-06]
[1744329769981,18.36464081,1519.6,1519.5,2.52e-06]
[1744329770482,18.38594081,1519.6,1519.5,2.52e-06]
[1744329770695,24.23794081,1519.6,1519.5,2.52e-06]
[1744329773699,34.54169489,1519.6,1519.5,2.52e-06]
[1744329774696,29.54169489,1519.6,1519.5,2.52e-06]
[1744329775489,24.48939489,1519.6,1519.5,2.52e-06]
[1744329775694,29.52239489,1519.6,1519.5,2.52e-06]
[1744329775997,34.52239489,1519.6,1519.5,2.52e-06]
[1744329776195,6.58558,1519.5,1518.5,10.32735427]
[1744329776397,1.31781,1518.7,1518.6,1.3612]
[1744329776599,4.52561,1518.7,1518.6,1.3612]
[1744329776792,1.31781,1518.7,1518.6,1.3612]
[1744329777404,1.32764718,1518.8,1518.6,6.3612]
[1744329777899,1.32764718,1518.8,1518.6,7.67909]
[1744329778092,1.32764718,1518.8,1518.6,6.3612]
[1744329778296,1.31781,1518.7,1518.6,6.3612]
[1744329778601,1.31781,1518.7,1518.6,1.3612]
[1744329779395,1.31781,1518.7,1518.6,2.9662]
[1744329781799,1.31781,1518.7,1518.6,7.9662]
[1744329782006,4.53544718,1518.8,1518.6,9.28406]
[1744329782302,4.53544718,1518.8,1518.7,1.6788]
[1744329782708,0.00987718,1518.8,1518.7,7.99661]
[1744329783105,1.32759718,1518.8,1518.7,6.6788]
[1744329783305,1.32759718,1518.8,1518.7,1.6788]
[1744329784000,0.00987718,1518.8,1518.7,7.99661]
[1744329786006,7.68246881,1519.2,1518.7,6.6788]
[1744329786206,7.68246881,1519.2,1519.0,1.31749]
[1744329786507,8.99983881,1519.2,1519.1,2.899]
[1744329786703,1.31737,1519.2,1519.1,2.899]
[1744329787308,1.32720718,1519.3,1519.1,4.21643]
[1744329787509,1.31737,1519.2,1519.1,2.899]
[1744329788697,1.31755,1519.0,1518.7,9.1998]
[1744329789007,1.31763,1518.9,1518.8,2.9189]
[1744329789402,1.31763,1518.9,1518.8,4.5114]
[1744329790506,1.31763,1518.9,1518.8,3.0677]
[1744329791816,1.31761,1519.0,1518.8,4.38538]
[1744329792006,1.31753,1519.1,1518.9,3.00673]
[1744329792309,1.31753,1519.1,1519.0,1.6891]
[1744329795312,4.52523,1519.2,1519.0,1.6891]
[1744329795507,4.52518,1519.2,1519.0,1.6891]
[1744329795702,4.52518,1519.2,1519.1,1.3986]
[1744329796014,1.31746,1519.1,1519.0,1.6891]
[1744329799712,4.52524,1519.2,1519.0,3.00665]
[1744329799914,1.31746,1519.1,1519.0,3.00665]
[1744329800303,1.31746,1519.1,1519.0,1.6891]
[1744329804918,2.70363,1519.2,1519.0,3.00665]
[1744329805312,0.00987718,1519.3,1519.1,1.6405]
[1744329805514,0.00987718,1519.3,1519.2,1.31737]
[1744329805715,0.00987718,1519.3,1519.2,4.11407]
[1744329806012,0.00987718,1519.3,1519.2,10.71407]
[1744329807118,0.00987718,1519.3,1519.2,5.71407]
[1744329807714,0.00987718,1519.3,1519.2,10.71407]
[1744329807919,0.00987718,1519.3,1519.2,13.92187]
[1744329808423,7.68246881,1519.5,1519.4,1.3172]
[1744329808622,7.68246881,1519.5,1519.4,9.458]
[1744329808818,7.68246881,1519.5,1519.4,55.258]
[1744329809013,10.30375408,1519.6,1519.5,1.31711]
[1744329809627,10.30375408,1519.6,1519.5,12.30911]
[1744329809819,10.30375408,1519.6,1519.5,7.30911]
[1744329810929,0.00987718,1519.7,1519.6,1.31703]
[1744329811120,0.00987718,1519.7,1519.6,4.18073]
[1744329812228,0.00987718,1519.7,1519.6,2.8637]
[1744329812526,0.00987718,1519.7,1519.6,5.79093]
[1744329814422,0.00987718,1519.7,1519.6,8.99873]
[1744329814625,12.8796926,1520.3,1519.6,27.36140416]
[1744329814922,10.25519052,1520.3,1520.2,1.31651]
[1744329815232,15.4370646,1520.7,1520.2,1.31651]
[1744329815233,15.4370646,1520.7,1520.6,1.31616]
[1744329815528,15.4370646,1520.7,1520.6,55.25596]
[1744329815924,15.4370646,1520.7,1520.6,45.32396]
[1744329816119,15.4370646,1520.7,1520.6,42.11616]
[1744329816326,15.4370646,1520.7,1520.6,40.8]
[1744329816522,15.4370646,1520.7,1520.6,42.11616]
[1744329817630,16.7531346,1520.7,1520.6,40.8]
[1744329817931,17.0474646,1520.7,1520.6,42.11616]
[1744329818133,17.0474646,1520.7,1520.6,40.8]
[1744329819435,1.6104,1520.7,1520.6,40.8]
[1744329819835,1.6104,1520.7,1520.6,42.4252]
[1744329820434,1.6104,1520.7,1520.6,43.74136]
[1744329820626,3.2078,1520.9,1520.7,1.31604]
[1744329820828,1.4063,1521.1,1520.7,1.6252]
[1744329821134,1.31565,1521.2,1521.0,1.31581]
[1744329821436,3.05205,1521.2,1521.1,1.7345]
[1744329821740,1.31577,1521.1,1520.7,1.4486]
[1744329821937,1.7364,1521.0,1520.8,1.7345]
[1744329822433,1.7364,1521.0,1520.9,1.3159]
[1744329822635,3.05224,1521.0,1520.8,1.7345]
[1744329822829,1.7364,1521.0,1520.8,3.05045]
[1744329823036,1.7364,1521.0,1520.9,3.0504]
[1744329823235,1.404,1521.1,1520.9,3.0504]
[1744329823437,1.404,1521.1,1521.0,3.05031]
[1744329823738,1.7364,1521.2,1521.0,3.05031]
[1744329823940,4.6043,1521.3,1521.1,3.05023]
[1744329824238,7.6563,1521.3,1521.1,3.05023]
[1744329824438,7.6563,1521.3,1521.2,1.6983]
[1744329824634,7.6563,1521.3,1520.9,1.31584]
[1744329824635,6.3407,1521.3,1520.9,1.31584]
[1744329824830,3.05378,1521.2,1521.0,3.01411]
[1744329825034,1.7381,1521.2,1521.0,3.01411]
[1744329825331,1.7381,1521.2,1521.1,3.01403]
[1744329825525,4.6043,1521.3,1521.1,3.01403]
[1744329825731,5.91985,1521.3,1521.2,1.6983]
[1744329826037,7.65795,1521.3,1521.2,1.6983]
[1744329827439,1.3336,1521.4,1521.2,3.01389]
[1744329827644,2.64908,1521.4,1521.2,3.01389]
[1744329828144,1.3336,1521.4,1521.3,1.31555]
[1744329828445,1.31533,1521.6,1521.4,1.31547]
[1744329828742,3.00423,1521.6,1521.5,1.6858]
[1744329829135,1.6889,1521.6,1521.5,3.00118]
[1744329829341,4.00095,1521.8,1521.6,1.31527]
[1744329829642,2.6858,1521.8,1521.6,7.91007]
[1744329829936,1.31521,1521.7,1521.6,4.909]
[1744329830140,1.31536,1521.6,1521.4,4.909]
[1744329830342,1.6026,1521.5,1521.4,1.6553]
[1744329830543,1.31547,1521.4,1521.3,0.00987718]
[1744329831247,1.6026,1521.4,1521.3,1.32542718]
[1744329831542,1.6026,1521.4,1521.3,2.98072718]
[1744329832244,3.2078,1521.5,1521.4,1.31547]
[1744329832447,4.52318,1521.5,1521.4,1.6553]
[1744329832644,3.2078,1521.5,1521.4,2.97077]
[1744329833645,4.52318,1521.5,1521.4,1.6553]
[1744329833846,1.31547,1521.4,1521.3,1.44927718]
[1744329834045,1.6323,1521.4,1521.3,4.50052718]
[1744329834238,3.2078,1521.7,1521.4,1.31547]
[1744329834437,6.15538,1521.7,1521.4,3.05117]
[1744329834643,1.6323,1521.6,1521.5,3.05108]
[1744329834844,2.94759,1521.6,1521.5,1.7357]
[1744329835438,2.94766,1521.6,1521.4,1.31547]
[1744329835638,1.31547,1521.4,1521.3,0.00987718]
[1744329835944,6.15555,1521.5,1521.3,1.32542718]
[1744329836138,1.6323,1521.4,1521.3,1.32542718]
[1744329837043,1.31537,1521.6,1521.4,1.31546]
[1744329837240,1.31547,1521.4,1521.3,0.00987718]
[1744329837639,9.21907,1521.4,1521.3,0.00987718]
[1744329837841,10.78987,1521.4,1521.3,0.00987718]
[1744329838146,5.78987,1521.4,1521.3,0.00987718]
[1744329838347,10.78987,1521.4,1521.3,0.00987718]
[1744329840747,1.3159,1520.9,1520.8,3.2078]
[1744329841056,3.28976,1520.9,1520.3,1.31635]
[1744329841249,3.28976,1520.9,1520.4,1.7368]
[1744329841250,1.31625,1520.5,1520.4,1.7368]
[1744329841747,1.31625,1520.5,1520.3,42.11635]
[1744329841748,1.31633,1520.4,1520.3,40.8]
[1744329841950,1.31642,1520.3,1520.2,4.907]
[1744329842250,2.95522,1520.3,1520.2,0.00987718]
[1744329842451,5.66032,1520.3,1520.2,0.00987718]
[1744329842945,10.66032,1520.3,1520.2,0.00987718]
[1744329843340,5.66032,1520.3,1520.2,0.00987718]
[1744329843750,10.66032,1520.3,1520.2,0.00987718]
[1744329844648,15.56832,1520.3,1520.2,0.00987718]
[1744329845048,10.66032,1520.3,1520.2,0.00987718]
[1744329845951,10.66032,1520.3,1520.2,7.18e-06]
[1744329846347,16.51232,1520.3,1520.2,7.18e-06]
[1744329847651,16.51232,1520.3,1519.1,4.52522]
[1744329847652,1.31727,1519.4,1519.1,4.52522]
[1744329847856,4.52497,1519.5,1519.3,43.85588]
[1744329848152,4.52497,1519.5,1519.4,1.7386]
[1744329848346,1.31717,1519.5,1519.4,1.7386]
[1744329848542,1.3172,1519.4,1519.3,40.8]
[1744329848855,3.0418,1519.4,1519.3,40.8]
[1744329849150,1.7246,1519.4,1519.3,40.8]
[1744329849353,0.00987718,1519.5,1519.3,45.8]
[1744329849552,0.00987718,1519.5,1519.4,2.9195]
[1744329850154,0.00987718,1519.5,1519.4,7.9195]
[1744329850455,0.00987718,1519.5,1519.4,9.3515]
[1744329855965,0.00987718,1519.5,1519.4,14.2625]
[1744329859863,0.00987718,1519.5,1519.4,15.6404]
[1744329861360,3.2078,1520.6,1519.5,3.29279]
[1744329861566,1.6857,1520.5,1520.1,6.49927]
[1744329861760,1.31619,1520.6,1520.4,1.31633]
[1744329862062,5.06711805,1520.8,1520.7,1.31607]
[1744329862365,1.14779805,1520.8,1520.7,9.43587]
[1744329862558,8.78126304,1521.0,1520.9,1.3159]
[1744329862858,12.66779513,1521.1,1521.0,1.31581]
[1744329862859,8.38756513,1521.1,1521.0,1.31581]
[1744329863064,15.4370646,1521.4,1521.3,1.31555]
[1744329863368,15.4370646,1521.4,1521.3,15.42735]
[1744329863662,15.4370646,1521.4,1521.3,61.22735]
[1744329864065,16.7927433,1521.5,1521.4,1.31547]
[1744329864263,4.52426234,1521.5,1521.4,7.30747]
[1744329864565,6.26e-06,1522.1,1522.0,1.31495]
[1744329864867,6.26e-06,1522.1,1522.0,20.42475]
[1744329865163,6.26e-06,1522.1,1522.0,69.61319506]
[1744329866273,6.26e-06,1522.1,1522.0,56.22475]
[1744329867575,6.26e-06,1522.1,1522.0,61.22475]
[1744329867773,6.26e-06,1522.1,1522.0,69.7063156]
[1744329867972,1.6444,1523.0,1522.8,1.31422]
[1744329868171,12.7430474,1523.0,1522.8,6.22222]
[1744329868366,11.0986474,1522.9,1522.8,6.22222]
[1744329868568,3.2078,1523.1,1522.9,1.31414]
[1744329868878,11.0986474,1523.0,1522.8,6.2222]
[1744329869078,1.6444,1522.9,1522.8,6.2222]
[1744329869279,12.7430474,1522.9,1522.8,6.2222]
[1744329869868,12.7430474,1522.9,1522.8,4.908]
[1744329870067,12.7430474,1522.9,1522.8,6.22226]
[1744329870274,1.6444,1522.9,1522.8,6.22226]
[1744329870875,1.3705,1523.3,1522.8,15.9]
[1744329871080,12.6848474,1523.2,1523.1,4.5218]
[1744329871272,1.5862,1523.2,1523.1,9.4278]
[1744329871474,12.6848474,1523.2,1523.1,50.2278]
[1744329871776,1.5862,1523.2,1523.1,50.2278]
[1744329872480,4.6071,1523.7,1523.1,48.9138]
[1744329872684,4.5215,1523.5,1523.1,45.706]
[1744329872883,2.88098,1523.4,1523.1,47.01994]
[1744329873176,12.6658474,1523.4,1523.1,47.67674]
[1744329873384,11.0986474,1523.3,1523.2,1.31391]
[1744329873578,12.6658474,1523.3,1523.1,47.67672]
[1744329873775,11.0986474,1523.2,1523.1,45.706]
[1744329873982,12.6658474,1523.2,1523.1,45.706]
[1744329874181,13.9797574,1523.2,1523.1,45.706]
[1744329874674,18.9797574,1523.2,1523.1,40.8]
[1744329875181,20.4273574,1523.2,1523.1,40.8]
[1744329875588,1.31417,1522.9,1522.8,4.904]
[1744329875882,1.3141,1523.0,1522.8,4.904]
[1744329876176,11.0986474,1522.9,1522.8,4.904]